bitfinex/quotes_BTCUSD_20251113
["timestamp","ask_amount","ask_price","bid_price","bid_amount"]
[1763060992366,0.09916915,98689.0,98665.0,0.076194]
[1763060992801,0.09916915,98689.0,98665.0,0.00013969]
[1763060993009,0.09816915,98674.0,98665.0,0.07709081]
[1763060993212,0.09816915,98674.0,98665.0,0.00013969]
[1763060994463,0.09816915,98674.0,98665.0,0.00113969]
[1763060994614,0.09816915,98673.0,98665.0,0.00113969]
[1763060994819,0.00065181,98666.0,98665.0,0.00113969]
[1763060995329,0.00065181,98666.0,98665.0,0.00213969]
[1763060995782,0.00065181,98666.0,98665.0,0.00013969]
[1763060995963,0.00065181,98666.0,98665.0,0.00113969]
[1763060996186,0.00065181,98666.0,98665.0,0.00213969]
[1763060996601,0.00065181,98666.0,98665.0,0.00218969]
[1763060996804,0.00065181,98666.0,98665.0,0.32518969]
[1763060997004,0.00065181,98666.0,98665.0,0.32523969]
[1763060998926,0.00065181,98666.0,98665.0,0.00223969]
[1763060999327,0.00065181,98666.0,98664.0,0.25423969]
[1763060999532,0.00013949,98666.0,98665.0,0.20270612]
[1763061000455,0.00013949,98666.0,98664.0,0.20270766]
[1763061000691,0.0002,98720.0,98671.0,0.04341874]
[1763061000882,0.0002,98720.0,98670.0,0.01013479]
[1763061000883,0.00013964,98714.0,98700.0,0.60156807]
[1763061001114,0.00013964,98714.0,98703.0,0.04341874]
[1763061001340,0.00013964,98714.0,98704.0,0.20262398]
[1763061001553,0.00013964,98714.0,98701.0,0.04341874]
[1763061001782,0.00013964,98714.0,98707.0,0.20261784]
[1763061001985,0.00013964,98714.0,98709.0,0.20261386]
[1763061002435,0.00013964,98714.0,98706.0,0.323]
[1763061002962,0.00013964,98714.0,98708.0,0.20261708]
[1763061003202,0.00013964,98714.0,98707.0,5e-05]
[1763061003605,0.00013964,98714.0,98707.0,0.0001]
[1763061003989,0.00013964,98714.0,98707.0,0.00015]
[1763061004214,0.09816915,98713.0,98707.0,0.00015]
[1763061004426,0.04914,98708.0,98707.0,0.00015]
[1763061004656,0.11404,98708.0,98707.0,0.00015]
[1763061005059,0.04914,98708.0,98707.0,0.00015]
[1763061005214,0.11404,98708.0,98707.0,0.00015]
[1763061005476,0.2,98700.0,98650.0,0.01013684]
[1763061005674,0.09816915,98678.0,98650.0,0.62980994]
[1763061005875,0.09816915,98678.0,98651.0,0.323]
[1763061006075,0.09816915,98678.0,98650.0,0.07610388]
[1763061006076,0.04713,98677.0,98650.0,0.07610388]
[1763061006235,0.04713,98677.0,98645.0,0.04341874]
[1763061006440,0.14153,98677.0,98655.0,0.20272635]
[1763061006641,0.14153,98677.0,98658.0,0.323]
[1763061006949,0.14153,98677.0,98656.0,0.323]
[1763061007168,0.09816915,98663.0,98656.0,0.00013949]
[1763061008024,0.0603,98657.0,98656.0,0.00013949]
[1763061008234,0.09816915,98663.0,98656.0,0.00013949]
[1763061008864,0.09816915,98663.0,98656.0,0.52586254]
[1763061009078,0.09816915,98663.0,98659.0,0.20271752]
[1763061009286,0.09816915,98663.0,98656.0,0.00113949]
[1763061009701,0.60156807,98680.0,98656.0,0.00113949]
[1763061009914,0.09816915,98662.0,98656.0,0.00113949]
[1763061010122,0.04713,98684.0,98656.0,0.00113949]
[1763061010341,0.0944,98703.0,98660.0,0.61170388]
[1763061010552,0.04713,98716.0,98673.0,0.09816915]
[1763061010553,0.0944,98714.0,98673.0,0.09816915]
[1763061010754,0.09816915,98696.0,98674.0,0.20268763]
[1763061010963,0.09816915,98696.0,98661.0,0.20271434]
[1763061011174,0.0944,98695.0,98663.0,0.323]
[1763061011378,0.09816915,98681.0,98651.0,0.323]
[1763061011583,0.09816915,98681.0,98642.0,0.39910905]
[1763061011801,0.04713,98680.0,98673.0,0.001]
[1763061012416,0.04713,98680.0,98656.0,0.32313949]
[1763061012620,0.001,98677.0,98656.0,0.32313949]
[1763061012827,0.04713,98680.0,98656.0,0.32313949]
[1763061013245,0.04813,98680.0,98656.0,0.00013949]
[1763061013451,0.04713,98680.0,98656.0,0.00013949]
[1763061013611,0.04713,98680.0,98656.0,0.00113949]
[1763061013813,0.001,98677.0,98648.0,0.323]
[1763061014060,0.00113959,98677.0,98648.0,0.323]
[1763061014260,0.00013959,98677.0,98648.0,0.323]
[1763061014464,0.00013959,98677.0,98657.0,0.323]
[1763061014671,0.00013959,98677.0,98676.0,0.52568352]
[1763061014867,0.00013959,98677.0,98676.0,0.323]
[1763061015039,0.00013959,98677.0,98676.0,0.39745758]
[1763061015249,0.00113959,98677.0,98676.0,0.323]
[1763061016405,0.00113959,98677.0,98658.0,0.20271986]
[1763061016637,0.00013959,98677.0,98664.0,0.323]
[1763061016863,0.00013959,98677.0,98676.0,0.20268352]
[1763061017067,0.0002,98720.0,98700.0,0.60156807]
[1763061017203,0.00033964,98720.0,98700.0,0.60156807]
[1763061017409,0.00033964,98720.0,98701.0,0.323]
[1763061017610,0.00033964,98720.0,98709.0,0.323]
[1763061017819,0.00033964,98720.0,98718.0,0.20259617]
[1763061018051,0.00033964,98720.0,98709.0,0.52561371]
[1763061018052,0.00033964,98720.0,98716.0,0.20259951]
[1763061018409,0.00033964,98720.0,98710.0,0.07557143]
[1763061018529,0.00033964,98720.0,98718.0,0.20259615]
[1763061018730,0.00033964,98720.0,98716.0,0.20260014]
[1763061018940,0.00033964,98720.0,98709.0,0.323]
[1763061019147,0.00033964,98720.0,98719.0,0.20259524]
[1763061019352,0.00033964,98720.0,98719.0,0.52559524]
[1763061020200,0.00033964,98720.0,98719.0,0.323]
[1763061020435,0.00033964,98720.0,98716.0,0.0001]
[1763061020647,0.15846915,98717.0,98716.0,0.0011]
[1763061020856,0.15846915,98717.0,98716.0,0.00115]
[1763061021069,0.15846915,98717.0,98693.0,0.20264701]
[1763061021267,0.0944,98716.0,98680.0,0.6293371]
[1763061021475,0.09816915,98702.0,98680.0,0.61920334]
[1763061021680,0.09816915,98702.0,98676.0,0.20288289]
[1763061021927,0.0944,98701.0,98676.0,0.0002]
[1763061022351,0.09816915,98687.0,98676.0,0.0002]
[1763061022778,0.00093853,98677.0,98676.0,0.0002]
[1763061024267,0.00093853,98677.0,98676.0,0.00125]
[1763061024491,0.00093853,98677.0,98676.0,0.32425]
[1763061024698,0.0002,98720.0,98680.0,0.01013376]
[1763061024916,0.00013964,98717.0,98700.0,0.60156807]
[1763061025127,0.00013964,98717.0,98691.0,0.09816915]
[1763061025128,0.00013964,98717.0,98708.0,0.323]
[1763061025337,0.00013964,98717.0,98707.0,0.60156807]
[1763061025338,0.00013964,98717.0,98716.0,0.323]
[1763061025776,0.00013964,98717.0,98716.0,0.5256014]
[1763061025997,0.00013964,98717.0,98716.0,0.323]
[1763061025998,0.00313964,98717.0,98716.0,0.323]
[1763061026213,0.00313964,98717.0,98714.0,0.20260531]
[1763061026214,0.00313964,98717.0,98714.0,0.323]
[1763061026418,0.00213964,98717.0,98716.0,0.323]
[1763061026624,0.00213964,98717.0,98716.0,0.42116915]
[1763061026834,0.00213964,98717.0,98716.0,0.5256514]
[1763061027046,0.00013964,98717.0,98716.0,0.32305]
[1763061027247,0.00013964,98717.0,98716.0,0.3231]
[1763061027453,0.00013964,98717.0,98716.0,0.3241]
[1763061027658,0.00013964,98717.0,98716.0,0.32415]
[1763061027856,0.00013964,98717.0,98716.0,0.32315]
[1763061028098,0.00013964,98717.0,98716.0,0.3232]
[1763061028307,0.00013964,98717.0,98716.0,0.0022]
[1763061028950,0.00013964,98717.0,98715.0,0.15680274]
[1763061029358,0.0002,98720.0,98719.0,0.20259524]
[1763061029601,1e-08,98720.0,98719.0,0.52559524]
[1763061029848,1e-08,98720.0,98719.0,0.54592524]
[1763061030077,1e-08,98720.0,98719.0,0.52559524]
[1763061031158,1e-08,98720.0,98719.0,0.52659524]
[1763061031563,1.00176807,98770.0,98719.0,0.52659524]
[1763061031564,1e-08,98746.0,98745.0,0.2025419]
[1763061031771,1e-08,98746.0,98745.0,0.5255419]
[1763061032658,1e-08,98746.0,98745.0,0.5358933]
[1763061032816,0.0002,98770.0,98757.0,0.323]
[1763061033016,0.00066557,98770.0,98745.0,0.08803754]
[1763061033256,0.00066557,98770.0,98765.0,0.323]
[1763061033542,0.00066557,98770.0,98761.0,0.323]
[1763061033978,0.09816915,98769.0,98760.0,0.60156807]
[1763061034196,0.00066557,98770.0,98760.0,0.60156807]
[1763061034411,0.00066557,98770.0,98764.0,0.20250174]
[1763061034580,0.00166557,98770.0,98760.0,0.60156807]
[1763061035018,0.00066557,98770.0,98768.0,0.20249403]
[1763061035439,0.00066557,98770.0,98760.0,0.60156807]
[1763061035440,0.00166557,98770.0,98760.0,0.60156807]
[1763061035647,0.00166557,98770.0,98768.0,0.20249372]
[1763061035881,0.00166557,98770.0,98760.0,0.60156807]
[1763061036083,0.00166557,98770.0,98760.0,0.8040773]
[1763061036214,0.00166557,98770.0,98761.0,0.20250908]
[1763061036413,0.00166557,98770.0,98760.0,0.52656807]
[1763061036621,0.00066557,98770.0,98768.0,0.20249469]
[1763061037037,0.00066557,98770.0,98760.0,0.52656807]
[1763061037696,0.00066557,98770.0,98730.0,0.02774744]
[1763061037697,0.06656,98761.0,98730.0,0.02774744]
[1763061037897,0.09816915,98754.0,98740.0,0.60156807]
[1763061038270,0.04807,98755.0,98740.0,0.8041193]
[1763061038478,0.04807,98755.0,98710.0,0.02536416]
[1763061038479,0.09816915,98753.0,98710.0,0.02536416]
[1763061038688,0.09816915,98732.0,98700.0,0.61934798]
[1763061038888,0.09816915,98732.0,98700.0,0.61169978]
[1763061039088,0.09816915,98732.0,98720.0,0.60156807]
[1763061039289,0.09816915,98731.0,98721.0,0.20259114]
[1763061039611,0.09816915,98731.0,98728.0,0.20257559]
[1763061039814,0.09816915,98730.0,98726.0,0.20258086]
[1763061040016,0.09863443,98730.0,98724.0,0.20258498]
[1763061040246,0.09863443,98730.0,98707.0,0.323]
[1763061040449,0.09863443,98730.0,98690.0,0.11775492]
[1763061040450,0.09998,98729.0,98700.0,0.67705599]
[1763061040655,0.09863443,98730.0,98710.0,0.60156807]
[1763061040855,0.00046528,98730.0,98719.0,0.60156807]
[1763061041085,0.09816915,98729.0,98719.0,0.60156807]
[1763061041286,0.09816915,98729.0,98715.0,0.323]
[1763061041496,0.09816915,98729.0,98711.0,0.323]
[1763061041706,0.09816915,98729.0,98710.0,0.60156807]
[1763061042143,0.09816915,98729.0,98700.0,0.67705599]
[1763061042351,0.04807,98711.0,98690.0,0.81435352]
[1763061042574,0.09816915,98714.0,98702.0,0.20262861]
[1763061042776,0.09816915,98714.0,98700.0,0.60156807]
[1763061042777,0.09816915,98713.0,98704.0,0.20262457]
[1763061042981,0.09816915,98729.0,98700.0,0.60156807]
[1763061043190,0.09816915,98729.0,98710.0,0.60156807]
[1763061043451,0.09816915,98729.0,98715.0,0.20260219]
[1763061043657,0.09816915,98729.0,98716.0,0.20260001]
[1763061043866,0.09816915,98729.0,98717.0,0.2025982]
[1763061044057,0.09816915,98729.0,98719.0,0.20259465]
[1763061044268,0.2,98750.0,98710.0,0.60156807]
[1763061044478,0.2,98750.0,98700.0,0.01013171]
[1763061044479,0.0001395,98750.0,98748.0,0.20253377]
[1763061044679,0.0001395,98750.0,98749.0,0.00905433]
[1763061044812,0.0001395,98750.0,98749.0,0.00805433]
[1763061045025,0.0001395,98750.0,98749.0,0.33105433]
[1763061045449,0.0021395,98750.0,98749.0,0.33105433]
[1763061045860,0.0001395,98750.0,98749.0,0.323]
[1763061046041,0.0001395,98750.0,98749.0,0.42016915]
[1763061046437,0.0001395,98750.0,98748.0,0.2025348]
[1763061046843,0.0001395,98750.0,98749.0,0.002]
[1763061047245,0.00204086,98750.0,98749.0,0.002]
[1763061047443,0.00204086,98750.0,98748.0,0.2025348]
[1763061047648,0.0001395,98750.0,98749.0,0.001]
[1763061047850,0.0001395,98750.0,98748.0,0.2035348]
[1763061047851,0.0001395,98750.0,98748.0,0.001]
[1763061048169,0.0001395,98750.0,98748.0,0.324]
[1763061048374,0.4002,98800.0,98761.0,0.20250864]
[1763061048375,0.09816915,98781.0,98761.0,0.20250864]
[1763061048579,0.09816915,98781.0,98769.0,0.20249112]
[1763061048580,0.09830863,98781.0,98769.0,0.20249112]
[1763061048776,0.00013948,98781.0,98776.0,0.20247696]
[1763061048980,0.00013948,98781.0,98770.0,0.88130801]
[1763061049156,0.00013948,98781.0,98762.0,0.03598]
[1763061049157,0.09816915,98780.0,98762.0,0.03598]
[1763061049360,0.09816915,98780.0,98767.0,0.20249539]
[1763061049550,0.09816915,98780.0,98769.0,0.20249149]
[1763061049782,0.09816915,98780.0,98764.0,0.20250293]
[1763061049989,0.09816915,98780.0,98761.0,0.323]
[1763061050345,0.00213948,98781.0,98762.0,0.45714915]
[1763061050550,0.00113948,98781.0,98777.0,0.2024747]
[1763061050809,0.00013948,98781.0,98775.0,0.20247898]
[1763061051001,0.001,98780.0,98763.0,0.03598]
[1763061051189,0.09916915,98780.0,98763.0,0.03598]
[1763061051348,0.001,98780.0,98772.0,0.20248491]
[1763061051559,0.001,98780.0,98778.0,0.2024727]
[1763061051761,0.001,98780.0,98777.0,0.2024747]
[1763061051955,0.001,98780.0,98773.0,0.20248343]
[1763061052183,0.002,98780.0,98775.0,0.20247933]
[1763061052383,0.002,98780.0,98771.0,0.20248694]
[1763061052625,0.001,98780.0,98770.0,0.88130801]
[1763061052782,0.001,98780.0,98778.0,0.20247332]
[1763061052982,0.001,98780.0,98779.0,0.03598]
[1763061053395,0.00013948,98781.0,98780.0,0.20247013]
[1763061053756,0.00113948,98781.0,98780.0,0.20147013]
[1763061054200,0.00013948,98781.0,98780.0,0.20147013]
[1763061054404,0.00013948,98781.0,98780.0,0.20247013]
[1763061054572,0.00284742,98781.0,98780.0,0.20247013]
[1763061055625,0.00284742,98781.0,98771.0,0.323]
[1763061055866,0.00013948,98781.0,98780.0,0.03598]
[1763061056226,0.00013948,98781.0,98779.0,0.23845015]
[1763061056758,0.00013948,98781.0,98779.0,0.23845047]
[1763061056969,0.00013948,98781.0,98780.0,0.323]
[1763061057888,0.00013948,98781.0,98780.0,0.35898]
[1763061058168,0.00013948,98781.0,98780.0,0.323]
[1763061058471,0.0002,98820.0,98805.0,0.20241861]
[1763061058691,0.00033948,98820.0,98800.0,0.88130801]
[1763061058920,0.00033948,98820.0,98811.0,0.20240637]
[1763061059206,0.00033948,98820.0,98811.0,0.52540585]
[1763061059478,0.09816915,98815.0,98811.0,0.39935173]
[1763061060180,0.09816915,98815.0,98811.0,0.07635173]
[1763061060432,0.06344,98812.0,98786.0,0.03598]
[1763061060672,0.06344,98812.0,98793.0,0.323]
[1763061060915,0.00033948,98820.0,98801.0,0.323]
[1763061061188,0.09816915,98815.0,98801.0,0.323]
[1763061061403,0.09816915,98815.0,98786.0,0.07757616]
[1763061061404,0.11047,98802.0,98786.0,0.07757616]
[1763061061617,0.09816915,98787.0,98786.0,0.07757616]
[1763061061837,0.16160915,98787.0,98767.0,0.03598]
[1763061062072,0.16160915,98787.0,98762.0,0.03598]
[1763061062073,0.0324,98774.0,98762.0,0.03598]
[1763061062313,0.09816915,98772.0,98761.0,0.07701298]
[1763061062526,0.09816915,98771.0,98762.0,0.20250585]
[1763061062740,0.09816915,98771.0,98742.0,0.39496]
[1763061062960,0.09816915,98771.0,98762.0,0.00013948]
[1763061064083,0.01588254,98784.0,98770.0,0.03598]
[1763061064302,0.04703,98792.0,98773.0,0.03598]
[1763061064518,0.09816915,98799.0,98773.0,0.03598]
[1763061064733,0.09816915,98799.0,98785.0,0.20245915]
[1763061064992,0.09816915,98799.0,98773.0,0.07196]
[1763061065242,0.09816915,98799.0,98777.0,0.323]
[1763061065460,0.09816915,98799.0,98775.0,0.323]
[1763061065676,0.09816915,98799.0,98782.0,0.323]
[1763061065898,0.09816915,98799.0,98773.0,0.03598]
[1763061065899,0.10016915,98799.0,98773.0,0.03598]
[1763061066111,0.19064915,98799.0,98772.0,0.20248584]
[1763061066328,0.001,98784.0,98767.0,0.276]
[1763061066545,0.001,98784.0,98770.0,0.88130801]
[1763061066760,0.10016915,98799.0,98770.0,0.88130801]
[1763061066980,0.10216915,98799.0,98771.0,0.09816915]
[1763061067205,0.002,98799.0,98798.0,0.03598]
[1763061067433,0.0002,98820.0,98798.0,0.03598]
[1763061067651,0.0002,98820.0,98790.0,0.01012248]
[1763061067652,0.0002,98820.0,98818.0,0.20239083]
[1763061067869,0.0002,98820.0,98810.0,0.88130801]
[1763061067870,0.0002,98820.0,98819.0,0.03598]
[1763061068089,0.0002,98820.0,98798.0,0.07453262]
[1763061068090,0.06028,98811.0,98796.0,0.03598]
[1763061068302,0.14017,98819.0,98796.0,0.03498]
[1763061068303,0.09816915,98812.0,98796.0,0.03498]
[1763061068528,0.0002,98820.0,98806.0,0.2024158]
[1763061068529,0.00013945,98811.0,98806.0,0.2024158]
[1763061068782,0.00013945,98811.0,98800.0,0.88130801]
[1763061068999,0.00013945,98811.0,98810.0,0.03498]
[1763061069234,0.0002,98820.0,98810.0,0.35798]
[1763061069235,0.0022,98820.0,98810.0,0.35798]
[1763061069457,0.0022,98820.0,98819.0,0.35798]
[1763061070098,0.0002,98820.0,98819.0,0.35798]
[1763061070738,0.0002,98820.0,98819.0,0.323]
[1763061071161,0.0002,98820.0,98819.0,0.001]
[1763061071364,0.0002,98820.0,98802.0,0.323]
[1763061071568,0.09816915,98816.0,98800.0,0.002]
[1763061071780,0.09816915,98816.0,98800.0,0.00013945]
[1763061072205,0.09816915,98815.0,98800.0,0.00013945]
[1763061072473,0.09316915,98815.0,98800.0,0.00013945]
[1763061073879,0.09416915,98815.0,98800.0,0.00013945]
[1763061074102,0.09416915,98815.0,98785.0,0.323]
[1763061074321,0.09430852,98815.0,98787.0,0.323]
[1763061074539,0.09430852,98815.0,98798.0,0.20243225]
[1763061074753,0.09430852,98815.0,98795.0,0.2024388]
[1763061074966,0.09530852,98815.0,98791.0,0.20244667]
[1763061075208,0.09530852,98815.0,98790.0,0.88130801]
[1763061075430,0.09430852,98815.0,98804.0,0.20241936]
[1763061075652,0.0002,98820.0,98814.0,0.52540046]
[1763061075872,0.0002,98820.0,98819.0,0.52439022]
[1763061076936,0.0002,98820.0,98819.0,0.323]
[1763061077153,0.09816915,98849.0,98829.0,0.20236902]
[1763061077287,0.01634175,98845.0,98823.0,0.323]
[1763061077491,0.00046474,98845.0,98823.0,0.323]
[1763061077694,0.00046474,98845.0,98819.0,0.324]
[1763061077904,0.00046474,98845.0,98828.0,0.20237069]
[1763061078106,0.00046474,98845.0,98828.0,0.323]
[1763061078311,0.00046474,98845.0,98823.0,0.323]
[1763061078754,0.00046474,98845.0,98829.0,0.323]
[1763061078932,0.00146474,98845.0,98829.0,0.323]
[1763061079142,0.00246474,98845.0,98836.0,0.20235411]
[1763061079347,0.00146474,98845.0,98838.0,0.2023503]
[1763061079548,0.00146474,98845.0,98832.0,0.20236329]
[1763061079758,0.00421567,98839.0,98823.0,0.07523231]
[1763061079956,0.00146474,98845.0,98838.0,0.20235132]
[1763061080155,0.00246474,98845.0,98824.0,0.323]
[1763061080570,0.00146474,98845.0,98825.0,0.20237794]
[1763061080776,0.00146474,98845.0,98826.0,0.323]
[1763061080967,0.00046474,98845.0,98824.0,0.323]
[1763061081168,0.00046474,98845.0,98824.0,0.271]
[1763061081386,0.00146474,98845.0,98824.0,0.271]
[1763061081619,0.09816915,98834.0,98823.0,0.07621269]
[1763061082117,0.06028,98824.0,98783.0,0.07220473]
[1763061082290,0.06028,98824.0,98780.0,0.02639408]
[1763061082291,0.09816915,98815.0,98791.0,0.20244759]
[1763061082642,0.09816915,98815.0,98780.0,0.96695698]
[1763061082841,0.09816915,98800.0,98780.0,0.07552547]
[1763061082962,0.09816915,98800.0,98783.0,0.20246329]
[1763061083162,0.09816915,98800.0,98787.0,0.20245529]
[1763061083404,0.09816915,98800.0,98787.0,0.00013937]
[1763061083935,0.06028,98788.0,98787.0,0.00013937]
[1763061084163,0.09048,98799.0,98787.0,0.00013937]
[1763061084374,0.09816915,98800.0,98787.0,0.00013937]
[1763061085201,0.09816915,98800.0,98787.0,0.00113937]
[1763061085508,0.001,98799.0,98787.0,0.00113937]
[1763061085715,0.09816915,98800.0,98787.0,0.00013937]
[1763061085871,0.09048,98799.0,98780.0,0.06478438]
[1763061086077,0.09048,98799.0,98773.0,0.20248396]
[1763061086278,0.09048,98799.0,98773.0,0.00013948]
[1763061086480,0.09816915,98785.0,98773.0,0.00013948]
[1763061086909,0.04969,98784.0,98773.0,0.07472133]
[1763061087103,0.06028,98774.0,98773.0,0.00013948]
[1763061087467,0.14017,98784.0,98773.0,0.00013948]
[1763061087468,0.04969,98784.0,98773.0,0.00013948]
[1763061087621,0.06028,98774.0,98773.0,0.00013948]
[1763061087989,0.2,98790.0,98773.0,0.00013948]
[1763061087990,0.09048,98805.0,98778.0,0.20247236]
[1763061088189,0.09048,98805.0,98779.0,0.00805433]
[1763061088398,0.09816915,98804.0,98774.0,0.323]
[1763061088607,0.09816915,98804.0,98781.0,0.323]
[1763061088822,0.09816915,98819.0,98780.0,0.88130801]
[1763061088823,0.09816915,98819.0,98790.0,0.88130801]
[1763061089000,0.09816915,98819.0,98806.0,0.20241557]
[1763061089241,0.09816915,98819.0,98800.0,0.88130801]
[1763061089418,0.09816915,98819.0,98818.0,0.20239227]
[1763061089623,0.09816915,98819.0,98808.0,0.20241276]
[1763061089862,0.09816915,98819.0,98790.0,0.88130801]
[1763061090075,0.09003,98838.0,98810.0,0.21252762]
[1763061090281,0.09830852,98819.0,98800.0,0.88130801]
[1763061090447,0.09830852,98819.0,98805.0,0.20241874]
[1763061090683,0.00013937,98819.0,98801.0,0.2024271]
[1763061090903,0.00013937,98819.0,98817.0,0.20239244]
[1763061091105,0.00113937,98819.0,98811.0,0.20240503]
[1763061091318,0.00013937,98819.0,98818.0,0.20239227]
[1763061091726,0.00013937,98819.0,98812.0,0.20240338]
[1763061091727,0.00013937,98819.0,98816.0,0.20239637]
[1763061091900,0.00013937,98819.0,98818.0,0.20239227]
[1763061092342,0.00013937,98819.0,98809.0,0.88130801]
[1763061092343,0.00013937,98819.0,98811.0,0.20240251]
[1763061092519,0.00013937,98819.0,98817.0,0.20239357]
[1763061093475,0.00013937,98819.0,98818.0,0.002]
[1763061093875,0.00013937,98819.0,98818.0,0.325]
[1763061094077,0.00013937,98819.0,98818.0,0.323]
[1763061094349,0.00013937,98819.0,98818.0,0.33341017]
[1763061094562,0.09816915,98849.0,98845.0,0.20233699]
[1763061094760,0.00046474,98849.0,98848.0,0.20233085]
[1763061095170,0.00046474,98849.0,98848.0,0.52533085]
[1763061095413,0.0002,98870.0,98869.0,0.52528787]
[1763061095614,0.00033939,98870.0,98869.0,0.20228787]
[1763061096416,0.00033939,98870.0,98869.0,0.12728787]
[1763061096794,0.00536019,98870.0,98869.0,0.45028787]
[1763061097208,0.0026164,98870.0,98869.0,0.45028787]
[1763061097408,0.01586496,98899.0,98870.0,0.33311429]
[1763061097613,0.01586496,98899.0,98897.0,0.2022306]
[1763061097788,0.01586496,98899.0,98885.0,0.323]
[1763061097986,0.01586496,98899.0,98898.0,0.20222855]
[1763061098187,0.06444496,98899.0,98877.0,0.20227002]
[1763061098413,0.06444496,98899.0,98884.0,0.20225527]
[1763061098619,0.01586496,98899.0,98880.0,0.88130801]
[1763061098818,0.01586496,98899.0,98870.0,0.01011429]
[1763061098819,0.01586496,98899.0,98898.0,0.20222855]
[1763061099065,0.01586496,98899.0,98898.0,0.52522855]
[1763061099269,0.0002,98900.0,98898.0,0.323]
[1763061099471,0.00033931,98900.0,98898.0,0.323]
[1763061099678,0.00033931,98900.0,98898.0,0.07722475]
[1763061099881,0.04858,98899.0,98885.0,0.001]
[1763061100198,0.09816915,98886.0,98885.0,0.001]
[1763061100403,0.09816915,98886.0,98850.0,0.89142434]
[1763061100404,0.09816915,98886.0,98862.0,0.07647162]
[1763061100657,0.09816915,98871.0,98862.0,0.07647162]
[1763061100894,0.09816915,98871.0,98850.0,0.88130801]
[1763061101103,0.09816915,98871.0,98840.0,0.02690633]
[1763061101104,0.09816915,98871.0,98862.0,0.07745767]
[1763061101331,0.09816915,98871.0,98840.0,0.01011736]
[1763061101548,0.09816915,98853.0,98839.0,0.20234743]
[1763061101761,0.09816915,98853.0,98840.0,0.88130801]
[1763061101989,0.09816915,98853.0,98840.0,0.07730801]
[1763061102406,0.09816915,98853.0,98839.0,0.20234759]
[1763061102621,0.09003,98870.0,98847.0,0.20233122]
[1763061102827,0.09816915,98855.0,98840.0,0.01011736]
[1763061103034,0.09816915,98855.0,98840.0,0.89142537]
[1763061103239,0.09816915,98855.0,98847.0,0.2023324]
[1763061103442,0.09816915,98855.0,98840.0,0.88130801]
[1763061103642,0.09816915,98855.0,98842.0,0.20234195]
[1763061103874,0.09816915,98855.0,98840.0,0.95787253]
[1763061103875,0.06776488,98855.0,98840.0,0.95787253]
[1763061104194,0.06776488,98855.0,98840.0,0.07656452]
[1763061104396,0.06776488,98855.0,98847.0,0.001]
[1763061105686,0.10642,98848.0,98839.0,0.00046474]
[1763061105862,0.09816915,98840.0,98839.0,0.00046474]
[1763061106481,0.04153,98850.0,98839.0,0.00046474]
[1763061106656,0.09816915,98840.0,98839.0,0.00046474]
[1763061106858,0.04153,98850.0,98839.0,0.00146474]
[1763061107077,0.06776488,98855.0,98839.0,0.00146474]
[1763061107335,0.06776488,98855.0,98840.0,0.59992047]
[1763061107546,0.09003,98878.0,98854.0,0.04087]
[1763061107745,0.68995047,98890.0,98854.0,0.10417]
[1763061107900,0.09816915,98856.0,98854.0,0.04087]
[1763061108069,0.09816915,98856.0,98832.0,0.323]
[1763061108070,0.09816915,98856.0,98839.0,0.00146474]
[1763061108268,0.09816915,98856.0,98847.0,1.0]
[1763061109129,0.06489,98848.0,98847.0,1.0]
[1763061110631,0.06489,98848.0,98847.0,0.925]
[1763061111468,0.04341874,98854.0,98847.0,0.925]
[1763061111904,0.04341874,98854.0,98847.0,0.92505]
[1763061112348,0.04341874,98855.0,98847.0,0.9251]
[1763061112598,0.04858,98848.0,98847.0,0.9261]
[1763061112742,0.11347,98848.0,98847.0,0.9261]
[1763061112949,0.11347,98848.0,98847.0,0.9251]
[1763061113275,0.11347,98848.0,98847.0,0.92515]
[1763061113428,0.11347,98848.0,98847.0,0.92615]
[1763061113989,0.15688874,98848.0,98847.0,0.92515]
[1763061114815,0.15688874,98848.0,98847.0,0.92615]
[1763061114988,0.11347,98848.0,98847.0,0.92615]
[1763061115208,0.04858,98848.0,98847.0,0.92615]
[1763061115381,0.11347,98848.0,98847.0,0.92615]
[1763061115801,0.11347,98848.0,98847.0,0.92515]
[1763061115802,0.15688874,98848.0,98847.0,0.92515]
[1763061115999,0.48088874,98848.0,98847.0,0.92515]
[1763061116760,0.47988874,98848.0,98847.0,0.92515]
[1763061117130,0.48088874,98848.0,98847.0,0.92515]
[1763061117332,0.48188874,98848.0,98847.0,0.92515]
[1763061117713,0.47988874,98848.0,98847.0,0.85015]
[1763061118339,0.49866274,98848.0,98847.0,0.33745981]
[1763061118517,0.55052901,98848.0,98847.0,0.33745981]
[1763061118736,0.55369815,98848.0,98847.0,0.33745981]
[1763061118940,0.55469815,98848.0,98847.0,0.33745981]
[1763061119138,0.55569815,98848.0,98847.0,0.33745981]
[1763061119338,0.55469815,98848.0,98847.0,0.33745981]
[1763061119584,0.55669815,98848.0,98847.0,0.33745981]
[1763061120152,0.55569815,98848.0,98847.0,0.33745981]
[1763061120351,0.55569815,98848.0,98839.0,0.00046474]
[1763061120352,0.46458789,98840.0,98839.0,0.00046474]
[1763061120528,0.50535103,98840.0,98839.0,0.00046474]
[1763061120731,2.50535103,98840.0,98839.0,0.00046474]
[1763061121174,2.52122891,98840.0,98839.0,0.00046474]
[1763061122875,2.52422891,98840.0,98839.0,0.00046474]
[1763061123076,2.62571227,98840.0,98839.0,0.00046474]
[1763061123282,2.62271227,98840.0,98839.0,0.00046474]
[1763061123490,2.62371227,98840.0,98839.0,0.00046474]
[1763061124127,2.62371227,98840.0,98839.0,0.00051474]
[1763061124944,0.47542874,98818.0,98817.0,0.95395439]
[1763061125147,0.47542874,98818.0,98817.0,0.95409378]
[1763061125575,0.53767753,98818.0,98817.0,0.95409378]
[1763061125729,0.47542874,98818.0,98817.0,0.95409378]
[1763061126197,0.49130938,98818.0,98817.0,0.95409378]
[1763061126374,2.49330938,98818.0,98817.0,0.95409378]
[1763061126748,2.49530938,98818.0,98817.0,0.95409378]
[1763061126965,2.49330938,98818.0,98817.0,0.95409378]
[1763061127164,2.59179274,98818.0,98817.0,0.95409378]
[1763061127365,2.61050699,98818.0,98817.0,0.95409378]
[1763061127846,2.61050699,98818.0,98817.0,0.95414378]
[1763061128043,2.40350728,98818.0,98817.0,0.95414378]
[1763061128252,2.46796768,98818.0,98817.0,0.94914378]
[1763061128444,2.47196768,98818.0,98817.0,0.94914378]
[1763061128698,2.46996768,98818.0,98817.0,0.94914378]
[1763061128851,2.46796768,98818.0,98817.0,0.94924378]